[Event "GER-chT States Women 2022"]
[Site "Braunfels"]
[Date "2022.06.18"]
[Round "4.9"]
[White "Steinbacher, Claudia"]
[Black "Doluhanova, Evgeniya"]
[Result "0-1"]
[ECO "E21"]
[WhiteElo "2020"]
[BlackElo "2270"]
[Annotator "TA"]
[PlyCount "232"]
[EventDate "2022.06.15"]
[EventType "swiss"]
[EventCountry "GER"]
[SourceTitle "playchess.com"]
[Source "ChessBase"]
[SourceQuality "1"]
[TimeControl "40/5400+30:1800+30"]

{[%evp 23,232,20,20,16,34,25,36,17,14,6,26,25,37,27,106,33,59,0,24,24,31,15,15,26,44,28,28,7,15,0,0,0,0,0,0,0,0,0,0,0,0,0,0,0,0,0,0,0,0,0,0,0,0,-61,-58,-45,0,0,0,0,0,0,10,10,24,24,30,0,0,0,0,0,0,0,0,0,0,0,0,0,0,-22,0,0,0,0,0,-41,-40,-39,-37,-152,0,0,0,-143,-156,-803,-1561,-1453,-1063,-1636,-1609,-1545,-1233,-1014,-459,-1494,-1358,-1687,-1633,-1687,-1515,-986,0,-1671,-1480,-1177,-1648,-1051,-948,-1736,-1602,-1262,-552,-1831,-1851,-1794,-1678,-1570,-1304,-1412,-1339,-1479,-655,-573,-631,-1043,-580,-552,-581,-590,-544,-522,-511,-468,-377,-1183,-1150,-8,-67,-8,-8,-677,-8,-8,-8,-8,-8,-8,0,0,0,-8,-8,-8,-8,-8,-8,-59,-8,-1004,-826,-29948,-29953,-29966,-29968,-29967,-29968,-29968,-29965,-29963,-29956,-29951,0,-6560,0,-3158,-8,-8,-8,-8,-8,-8,-8,-8,-8,-8,-8,-8,-8,-29950,-29951,-29952,-29952,-12797,-4926,-1552,-1371,-29960,-11287]} 1. d4 {[%emt 0:00:05]} Nf6 {[%emt 0:00:00]} 2. c4 {[%emt 0:00:01]} e6 {[%emt 0:00:01]} 3. Nf3 {[%emt 0:00:06]} b6 {[%emt 0:00:06]} 4. Nc3 {[%emt 0:00:32]} Bb7 {[%emt 0:01:38]} 5. Bg5 {[%emt 0:01:14]} Bb4 {[%emt 0:01:06]} 6. Rc1 {[%emt 0:06:00]} h6 {[%emt 0:00:20]} 7. Bxf6 {[%emt 0:01:05]} Qxf6 {[%emt 0:00:09]} 8. a3 {[%emt 0:00:05]} Bxf3 {[%emt 0:06:51]} 9. gxf3 {[%emt 0:03:07]} Bxc3+ {[%emt 0:01:27]} 10. Rxc3 {[%emt 0:00:02]} Nc6 {[%emt 0:01:09]} 11. e3 {[%emt 0:01:20]} e5 {[%emt 0:00:43]} 12. dxe5 {[%emt 0:04:13]} Nxe5 {[%emt 0:01:35]} 13. f4 {[%emt 0:00:04]} Ng6 {[%emt 0:01:18]} 14. Bg2 {[%emt 0:03:46]} Rd8 {[%emt 0:00:45]} 15. Qg4 {[%emt 0:12:18]} O-O {[%emt 0:01:58]} 16. O-O {[%emt 0:02:06]} Rfe8 {[%emt 0:02:43]} 17. Rd1 {[%emt 0:01:22]} Nh4 {[%emt 0:06:10]} 18. Bh1 {[%emt 0:07:50]} c6 {[%emt 0:05:53]} (18... d6 $11) 19. h3 {[%emt 0:04:47]} ({Don't blunder} 19. Rxd7 $2 Rxd7 20. Rc1 (20. Qxd7 $2 {is the wrong capture.} Rd8 $19) 20... Qxb2 $19) (19. Rcd3 $16) 19... Re6 $14 {[%emt 0:10:07]} 20. Kh2 {[%emt 0:00:37]} ({White should play} 20. Rcd3 $14) 20... Ng6 {[%emt 0:12:45]} 21. Rc2 {[%emt 0:01:52]} Rd6 {[%emt 0:05:09]} 22. Rcd2 {[%emt 0:01:43]} Rxd2 {[%emt 0:04:37]} 23. Rxd2 {[%emt 0:00:02]} c5 {[%emt 0:01:46]} 24. b3 {[%emt 0:09:50]} d6 {[%emt 0:00:11]} 25. Qd1 {[%emt 0:07:28]} (25. Kg3 {keeps more tension.} Ne7 26. Be4 g6 27. h4) 25... Ne7 {[%emt 0:03:16]} 26. Qc2 {[%emt 0:09:17]} g5 {[%emt 0:01:56]} 27. fxg5 $1 {[%emt 0:00:35]} hxg5 {[%emt 0:00:05]} 28. Qe4 {[%emt 0:04:40]} Ng6 {[%emt 0:02:17]} 29. Qf3 {[%emt 0:06:49]} Kg7 {[%emt 0:03:32]} 30. Qxf6+ {[%emt 0:00:32]} Kxf6 {[%emt 0:00:06]} 31. Kg3 {[%emt 0:00:18]} Ke7 {[%emt 0:01:21]} 32. f4 {[%emt 0:00:59]} gxf4+ {[%emt 0:00:34]} 33. exf4 {[%emt 0:00:01]} Rg8 {[%emt 0:00:12]} 34. Bd5 {[%emt 0:03:17]} Kf6 {[%emt 0:04:48]} 35. Be4 {[%emt 0:01:29]} Nf8+ {[%emt 0:00:14]} 36. Kf3 {[%emt 0:00:53]} Ke7 {[%emt 0:04:16]} 37. h4 {[%emt 0:00:06]} Ne6 {[%emt 0:00:29]} 38. Rh2 {[%emt 0:02:48]} (38. f5 $11 Nd4+ 39. Kf4) 38... Nd4+ $15 {[%emt 0:01:00]} 39. Kf2 {[%emt 0:01:00]} Rh8 {[%emt 0:02:01]} 40. b4 {[%emt 0:00:23]} Rh6 {[%emt 0:00:58]} 41. h5 {[%emt 0:30:56]} Kf8 {[%emt 0:30:37]} 42. Kg3 {[%emt 0:01:58]} Re6 {[%emt 0:05:19]} 43. Bd5 {[%emt 0:00:00]} Rf6 {[%emt 0:00:00]} 44. Kg4 {[%emt 0:00:00]} Kg7 {[%emt 0:00:00]} 45. Rf2 {[%emt 0:00:00]} Rh6 {[%emt 0:00:00]} 46. b5 {[%emt 0:00:00]} Rh8 {[%emt 0:00:00]} 47. a4 {[%emt 0:00:00]} Rg8 {[%emt 0:00:00]} 48. Kg5 {[%emt 0:00:00]} f6+ {[%emt 0:00:59]} 49. Kg4 {[%emt 0:00:00]} Re8 {[%emt 0:00:37]} 50. Ra2 {[%emt 0:00:00]} Re2 {[%emt 0:05:40]} 51. Ra3 {[%emt 0:00:00]} Kh6 {[%emt 0:05:42]} 52. Bf7 {[%emt 0:00:00]} Nc2 {[%emt 0:00:37]} 53. Rd3 {[%emt 0:00:34]} Re7 {[%emt 0:00:16]} 54. Bg6 {[%emt 0:00:25]} Ne3+ {[%emt 0:00:10]} 55. Kh4 {[%emt 0:00:28]} Nxc4 {[%emt 0:00:09]} 56. Rd5 $1 {[%emt 0:00:41]} Re3 {[%emt 0:00:58]} 57. Bd3 {[%emt 0:01:56]} (57. Bb1 $15) 57... Nb2 {[%emt 0:00:20]} 58. Bf5 {[%emt 0:00:09]} Nc4 {[%emt 0:01:03]} (58... Nxa4 $2 59. Rxd6 Re1 60. Rxf6+ Kg7 61. Rc6 $18) 59. Bd3 {[%emt 0:00:03]} Rf3 $1 {[%emt 0:01:03]} 60. Kg4 $2 {[%emt 0:03:11]} (60. a5 $17) 60... Ne3+ $19 {[%emt 0:00:10]} 61. Kxf3 {[%emt 0:00:02]} Nxd5 {[%emt 0:00:10]} 62. Bg6 {[%emt 0:00:48]} Ne7 {[%emt 0:00:15]} 63. Bf7 {[%emt 0:00:24]} d5 {[%emt 0:00:32]} 64. Ke3 {[%emt 0:00:03]} Kg7 {[%emt 0:00:38]} (64... Nf5+ $142 65. Ke2 d4) 65. Be8 {[%emt 0:00:15]} (65. Be6 $142 Kh6 66. Bf7) 65... Nf5+ $19 {[%emt 0:00:21]} 66. Kd3 {[%emt 0:00:54]} Kh6 {[%emt 0:01:30]} 67. Bc6 {[%emt 0:00:08]} Ne7 {[%emt 0:00:35]} 68. Be8 {[%emt 0:00:07]} Nf5 $2 {[%emt 0:00:37]} ({Black should try} 68... Nc8 $19 {Strongly threatening ...Nd6.} 69. Bc6 d4) 69. Bf7 $2 {[%emt 0:00:14][%mdl 8192]} (69. Bc6 $11) 69... Nd6 {[%emt 0:00:27]} 70. Bxd5 {[%emt 0:00:38]} Kxh5 {[%emt 0:00:04]} 71. Be6 {[%emt 0:00:37]} Kh4 {[%emt 0:00:09]} 72. Ke2 {[%emt 0:00:48]} Kg3 {[%emt 0:00:16]} 73. Ke3 {[%emt 0:00:02]} f5 {[%emt 0:00:15]} (73... c4 $142 74. f5 Kg4) 74. Bd5 {[%emt 0:00:17]} c4 {[%emt 0:00:35]} 75. Be6 {[%emt 0:00:16]} Kg4 {[%emt 0:00:33]} 76. Bd5 {[%emt 0:00:08]} c3 {[%emt 0:00:12]} 77. Bb3 {[%emt 0:00:44]} Ne4 {[%emt 0:01:14]} 78. Bd1+ {[%emt 0:00:10]} Kg3 {[%emt 0:00:17]} (78... Kh3 $142 79. Kf3 Nd2+ 80. Ke2 Kg4 81. Ke3+ Kg3) 79. Bc2 $19 {[%emt 0:00:04]} Nd6 {[%emt 0:00:12]} 80. Bd3 {[%emt 0:00:22]} Kg2 {[%emt 0:00:46]} 81. Ke2 {[%emt 0:01:46]} Kg1 {[%emt 0:00:56]} 82. Ke1 {[%emt 0:01:29]} Ne4 {[%emt 0:00:18]} 83. Ke2 {[%emt 0:00:56]} Kg2 84. Ke3 {[%emt 0:00:26]} Ng3 $1 {[%emt 0:01:38]} 85. Bc2 $2 {[%emt 0:00:14]} (85. Bb1) 85... Kh3 $19 {[%emt 0:00:26]} 86. Kf3 {[%emt 0:00:32]} Kh4 {[%emt 0:00:14]} 87. Bd3 {[%emt 0:00:23]} Ne4 {[%emt 0:00:29]} 88. Bc2 $2 {[%emt 0:00:23][%mdl 8192] [#]} (88. Ke3 $11 Kg4 89. Bc2) 88... Kh5 $2 {[%emt 0:00:27]} (88... Nd2+ $1 $19 89. Ke2 Kg4) 89. Ke3 $11 {[%emt 0:00:48]} Kg6 {[%emt 0:00:44]} 90. Kd4 {[%emt 0:00:24]} Kf6 {[%emt 0:00:04]} 91. Bb3 {[%emt 0:00:59]} Nf2 {[%emt 0:01:10]} 92. Ke3 {[%emt 0:00:32]} Ne4 {[%emt 0:00:23]} 93. Kd4 {[%emt 0:00:03]} Ng3 {[%emt 0:00:25]} 94. Ke3 {[%emt 0:00:12]} Ke7 {[%emt 0:00:25]} 95. Bc2 {[%emt 0:00:43]} Ke6 {[%emt 0:00:20]} 96. Bb3+ {[%emt 0:01:03]} ({Better is} 96. Kd4 $11) 96... Kd6 $15 {[%emt 0:00:14]} 97. Kd3 $2 {[%emt 0:00:44][%mdl 8192]} (97. Kd4 $11) 97... Nh5 $19 {[%emt 0:00:13]} 98. Ke3 {[%emt 0:00:19]} Kc5 {[%emt 0:00:24]} 99. Bc2 {[%emt 0:00:36]} Ng7 {[%emt 0:00:06]} 100. Kd3 {[%emt 0:00:17]} Kb4 101. Kd4 {[%emt 0:00:02]} Nh5 {[%emt 0:01:05]} 102. Ke5 {[%emt 0:00:06]} Ng3 {[%emt 0:00:04]} 103. Kd4 {[%emt 0:00:16]} Nh5 {[%emt 0:02:26]} (103... Ne2+ $142 104. Ke5 Ng3 105. Kd6 Nh5 106. Ke5 Ka3 107. Kd4 Kb2 108. Bxf5 Nxf4 109. Kc4 c2 110. Bxc2 Kxc2 111. Kb4 Nd5+ 112. Kc4 Ne3+ 113. Kb4 Kb2 114. a5 Kc2 115. Ka4 Nc4 116. axb6 axb6 117. Kb4 Nd6 118. Ka3 Nxb5+ 119. Ka4 Nd6 120. Ka3 Kc3 121. Ka4 Kc4 122. Ka3 Nf5 123. Kb2 Ne3 124. Kc1 Kc3 125. Kb1 b5 126. Kc1 b4 127. Kb1 b3 128. Kc1 b2+ 129. Kb1 Nd5 130. Ka2 Kc2 131. Ka3 b1=Q 132. Ka4 Qb4#) 104. Ke5 $1 $19 {[%emt 0:00:03]} Ng3 {[%emt 0:00:05]} (104... Ka3 $142 105. Bxf5 Kb3) 105. Kd4 $19 {[%emt 0:00:05]} Ka3 $2 {[%emt 0:00:55]} (105... Ne4 $19 106. Ke5 Ka3 107. Kxf5 Nf2) 106. Kxc3 $11 {[%emt 0:00:57]} Ne2+ {[%emt 0:00:05]} 107. Kc4 $1 {[%emt 0:00:17]} Nxf4 {[%emt 0:00:03]} 108. Bxf5 {[%emt 0:00:05]} Kxa4 {[%emt 0:00:04]} 109. Bc2+ $1 {[%emt 0:00:30]} Ka5 {[%emt 0:00:08]} 110. Bf5 {[%emt 0:00:14]} Ng2 {[%emt 0:01:22]} 111. Bd7 {[%emt 0:00:58]} Ne3+ {[%emt 0:00:07]} 112. Kd4 $2 {[%emt 0:01:19][%mdl 8192]} (112. Kc3 $11) 112... Nc2+ {[%emt 0:00:18]} 113. Kd5 {[%emt 0:00:57]} Na3 {[%emt 0:00:05]} 114. Kc6 {[%emt 0:01:08]} Nxb5 {[%emt 0:00:07]} 115. Kb7 {[%emt 0:00:02] [#]} a6 $1 {[%emt 0:00:11]} 116. Bc6 {[%emt 0:00:14]} Nd4 {[%emt 0:00:30]} 0-1

[Event "GER-chT States Women 2022"]
[Site "Braunfels"]
[Date "2022.06.18"]
[Round "4.10"]
[White "Jussupow, Nadia"]
[Black "Peglau, Dora"]
[Result "1-0"]
[ECO "D04"]
[WhiteElo "2146"]
[BlackElo "2008"]
[Annotator "TA"]
[PlyCount "107"]
[EventDate "2022.06.15"]
[EventType "swiss"]
[EventCountry "GER"]
[SourceTitle "playchess.com"]
[Source "ChessBase"]
[SourceQuality "1"]
[TimeControl "40/5400+30:1800+30"]

{[%evp 13,107,-29,-36,-39,20,14,7,0,50,47,68,54,55,39,61,33,43,31,82,78,70,79,89,77,86,84,83,68,59,61,61,70,68,60,95,61,57,56,60,49,46,40,164,160,158,101,101,104,94,70,85,69,147,151,133,139,120,89,187,182,182,158,158,165,172,166,308,306,300,294,598,550,1287,1264,1252,1250,1055,1002,1288,985,4630,4398,4622,4133,2085,698,698,547,29982,29983,29983,29984,29984,29985,29985,29986]} 1. d4 {[%emt 0:00:07]} Nf6 {[%emt 0:00:25]} 2. Nf3 {[%emt 0:00:14]} d5 {[%emt 0:00:31]} 3. e3 {[%emt 0:00:50]} Bf5 {[%emt 0:00:21]} 4. c4 {[%emt 0:00:10]} e6 {[%emt 0:00:30]} 5. Nc3 {[%emt 0:00:28]} c6 {[%emt 0:00:26]} 6. Qb3 {[%emt 0:00:06]} Qb6 {[%emt 0:04:07]} 7. Qxb6 {[%emt 0:13:58]} axb6 {[%emt 0:00:07]} 8. Nh4 {[%emt 0:00:17] D12: Slav Defence: 3 Nf3 Nf6 4 e3 Bf5.} Bg6 {[%emt 0:02:39]} (8... Bc2 $15) 9. Nxg6 {[%emt 0:04:11]} hxg6 {[%emt 0:00:09]} 10. cxd5 {[%emt 0:00:04] [#] The position is equal.} cxd5 $146 {[%emt 0:01:46]} (10... Nxd5 $11 11. Nxd5 exd5) ({Predecessor:} 10... Nxd5 11. Nxd5 exd5 12. a3 Bd6 13. h3 Nd7 14. Bd3 c5 15. Bb5 Rd8 16. Bd2 O-O 17. O-O Nb8 18. a4 Nc6 19. a5 Nxa5 20. dxc5 Nb3 21. cxd6 Nxa1 22. Rxa1 {1-0 (22) Munoz Prior,M (1427)-Segador Sanchez,D (1751) Barcelona 2019}) 11. Be2 {[%emt 0:01:29]} Be7 {[%emt 0:01:43]} 12. O-O {[%emt 0:00:12]} Nc6 {[%emt 0:01:28][%cal Bb8c6,Bc6a5,Ba5c4][%mdl 32]} 13. Bd2 {[%emt 0:00:55]} O-O {[%emt 0:01:27]} 14. Rac1 {[%emt 0:06:02]} Rfc8 {[%emt 0:03:59]} 15. Rfd1 {[%emt 0:07:08]} Ne4 {[%emt 0:07:35]} (15... Ne8 $14) 16. Nxe4 $16 {[%emt 0:01:22]} dxe4 {[%emt 0:00:38]} 17. a3 {[%emt 0:00:24]} Na5 {[%emt 0:13:04]} 18. Rc3 {[%emt 0:15:33] Against Nb3} Rxc3 {[%emt 0:06:58]} 19. Bxc3 {[%emt 0:02:25]} Rd8 {[%emt 0:03:30]} 20. f3 {[%emt 0:02:51]} exf3 {[%emt 0:01:29]} 21. Bxf3 {[%emt 0:00:35]} Nc4 {[%emt 0:12:55]} 22. Kf2 {[%emt 0:01:11]} Bg5 {[%emt 0:04:38]} 23. e4 {[%emt 0:07:29]} Bf6 {[%emt 0:02:19]} 24. e5 {[%emt 0:08:28]} Bg5 {[%emt 0:01:42]} 25. Ke2 {[%emt 0:02:30]} ({Don't play} 25. Bxb7 Nxe5 26. h3 Nc4 $11) 25... Ne3 {[%emt 0:01:33]} 26. Rd3 {[%emt 0:00:16] [#] Black must now prevent Bd2.} Nd5 {[%emt 0:00:08]} 27. Bd2 {[%emt 0:06:31]} Bxd2 {[%emt 0:04:17]} ({Black should try} 27... Nf4+ $1 $14 28. Bxf4 Bxf4) 28. Kxd2 $14 {[%emt 0:05:28][%mdl 4096] Endgame KRB-KRN} f6 {[%emt 0:07:40]} 29. exf6 {[%emt 0:01:30]} (29. Rb3 $142) 29... gxf6 $16 {[%emt 0:00:26]} 30. Rb3 {[%emt 0:02:19]} Rd6 {[%emt 0:03:27]} 31. Kd3 {[%emt 0:04:03]} Kf7 {[%emt 0:03:13]} 32. Kc4 {[%emt 0:02:38]} Ke7 {[%emt 0:01:38]} (32... Rc6+ $14 33. Kd3 f5) 33. Bxd5 {[%emt 0:01:57]} exd5+ {[%emt 0:00:09] KR-KR} 34. Kb5 {[%emt 0:00:17]} f5 {[%emt 0:08:35]} 35. Rh3 {[%emt 0:00:12] [#] Rh7+ is the strong threat.} Kd7 {[%emt 0:00:43]} (35... Kf6 $16) 36. Rh7+ {[%emt 0:00:06]} Kc8 {[%emt 0:00:03]} 37. Rf7 {[%emt 0:00:18]} Re6 {[%emt 0:00:53]} 38. b4 {[%emt 0:00:37]} Kb8 {[%emt 0:01:07]} 39. h4 {[%emt 0:00:39]} Kc8 {[%emt 0:00:53]} (39... Ka7 $142 40. g3 Re3) 40. h5 $18 {[%emt 0:01:14]} gxh5 {[%emt 0:00:29]} 41. Rxf5 {[%emt 0:30:08]} Rg6 $2 {[%emt 0:03:21]} (41... Kb8 42. Rxh5 Ka7 43. Rxd5 Rg6) 42. Rxh5 {[%emt 0:00:00]} Rxg2 {[%emt 0:00:34]} 43. Kxb6 {[%emt 0:00:00]} Rg6+ {[%emt 0:02:12]} 44. Kc5 {[%emt 0:00:00]} Ra6 {[%emt 0:01:02]} 45. Rh3 {[%emt 0:00:00]} Kd7 {[%emt 0:00:45]} 46. b5 {[%emt 0:00:00]} Ra5 {[%emt 0:01:04]} 47. Rh7+ {[%emt 0:00:00]} Kc8 {[%emt 0:00:51]} 48. Kb4 {[%emt 0:00:00]} b6 {[%emt 0:00:45]} 49. a4 {[%emt 0:00:00]} (49. Re7 $142 Kb8 50. a4) 49... Ra8 {[%emt 0:01:02]} 50. Rh8+ {[%emt 0:00:00]} Kb7 {[%emt 0:00:07]} 51. Rxa8 {[%emt 0:00:00] White mates.} Kxa8 {[%emt 0:00:05]} 52. a5 {[%emt 0:00:00]} bxa5+ {[%emt 0:00:07]} 53. Kxa5 {[%emt 0:00:00]} Kb7 {[%emt 0:00:06]} 54. b6 {[%emt 0:00:00] Weighted Error Value: White=0.25 (precise) /Black=0.47} 1-0

[Event "GER-chT States Women 2022"]
[Site "Braunfels"]
[Date "2022.06.18"]
[Round "4.11"]
[White "Peglau, Mirjam"]
[Black "Kostak, Tatiana"]
[Result "0-1"]
[ECO "A40"]
[WhiteElo "1834"]
[BlackElo "2102"]
[Annotator "TA"]
[PlyCount "66"]
[EventDate "2022.06.15"]
[EventType "swiss"]
[EventCountry "GER"]
[SourceTitle "playchess.com"]
[Source "ChessBase"]
[SourceQuality "1"]
[TimeControl "40/5400+30:1800+30"]

{[%evp 17,66,0,0,0,10,0,28,0,53,41,58,15,17,10,12,15,7,0,0,-20,4,-19,-7,-6,10,6,3,-29,-23,-27,-29,-27,-28,-71,-59,-77,-65,-80,-78,-82,-63,-70,-19,-87,-107,-91,-81,-91,-72,-281,-260]} 1. d4 {[%emt 0:00:03]} Nc6 {[%emt 0:00:49]} 2. c4 {[%emt 0:00:56]} e5 {[%emt 0:00:13]} 3. d5 {[%emt 0:01:11]} Nce7 {[%emt 0:00:08]} 4. e4 {[%emt 0:00:59]} Ng6 {[%emt 0:00:11]} 5. Nc3 {[%emt 0:00:40]} Bc5 {[%emt 0:00:59]} 6. Nf3 {[%emt 0:05:37]} a6 {[%emt 0:01:25]} 7. Bd3 {[%emt 0:00:53]} Nf6 {[%emt 0:02:30]} 8. O-O {[%emt 0:03:01]} O-O {[%emt 0:00:24]} 9. a3 {[%emt 0:02:19]} d6 {[%emt 0:00:17]} 10. b4 {[%emt 0:00:41] A50: Queen's Fianchetto Defence (1 d4 Nf6 2 c4 b6).} Ba7 {[%emt 0:00:10]} 11. Be3 {[%emt 0:03:59] [#]} h6 $146 {[%emt 0:02:21]} ({Predecessor:} 11... Ng4 12. Bxa7 Rxa7 13. g3 Nh6 14. Qd2 Bg4 15. Qe3 Bxf3 16. Qxf3 Qd7 17. Qh5 Ne7 {½-½ (46) Jeremic,V (2487)-Deepan Chakkravarthy,J (2355) Goa 2002}) 12. Rc1 {[%emt 0:11:54] White has an edge.} Ng4 {[%emt 0:02:27]} (12... Bxe3 $11 13. fxe3 Qe7) 13. Bxa7 $14 {[%emt 0:06:41]} Rxa7 {[%emt 0:00:06]} 14. Ne2 {[%emt 0:07:01]} Nf6 {[%emt 0:09:36][%cal Bg4f6,Bf6h5,Bh5f4][%mdl 32]} 15. Qd2 {[%emt 0:10:17]} Nh5 {[%emt 0:01:50]} 16. Qe3 {[%emt 0:00:46]} Ra8 {[%emt 0:00:17]} 17. Ng3 {[%emt 0:03:59]} Nhf4 {[%emt 0:00:39]} 18. Rfd1 {[%emt 0:03:53]} Qf6 (18... Bg4 {is more complex.} 19. Nf5 Ne7 20. h3 Bxf5 21. exf5 Qd7) 19. Rd2 {[%emt 0:03:30]} Bg4 {[%emt 0:01:58]} 20. Ne1 {[%emt 0:02:08]} Qg5 {[%emt 0:02:19]} 21. Kh1 {[%emt 0:06:30]} a5 {[%emt 0:01:29]} 22. f3 {[%emt 0:00:45]} Bd7 {[%emt 0:00:10]} 23. Bb1 {[%emt 0:01:40]} axb4 {[%emt 0:00:26]} 24. axb4 {[%emt 0:00:02]} Ra4 {[%emt 0:01:04]} 25. Nc2 {[%emt 0:04:36]} Rfa8 {[%emt 0:03:06]} 26. Rcd1 {[%emt 0:03:09]} Nh4 {[%emt 0:03:09]} 27. c5 {[%emt 0:01:39]} R8a6 {[%emt 0:02:33] Black is more active.} 28. cxd6 {[%emt 0:01:44]} cxd6 {[%emt 0:00:20]} ({Don't do} 28... Rxd6 29. Qc3 $16) 29. Qc3 {[%emt 0:00:24]} Qd8 {[%emt 0:02:31] Inhibits Qc7.} ({Better is} 29... Bb5 $15) 30. Rg1 {[%emt 0:05:16]} (30. Nf1 $11 {keeps the balance.}) 30... Bb5 $17 {[%emt 0:01:58]} 31. Rgd1 {[%emt 0:02:43]} Ra8 {[%emt 0:00:34]} 32. Qe3 {[%emt 0:02:02]} Bd7 {[%emt 0:12:50]} 33. Qf2 $2 {[%emt 0:02:28] [#]} (33. Nf1 $17) 33... Nhxg2 {[%emt 0:02:47] Weighted Error Value: White=0.32/Black=0.13 (very precise)} 0-1

[Event "GER-chT States Women 2022"]
[Site "Braunfels"]
[Date "2022.06.18"]
[Round "4.12"]
[White "Valkova, Angelika"]
[Black "Daemering, Katrin"]
[Result "1-0"]
[ECO "A42"]
[WhiteElo "2066"]
[BlackElo "1966"]
[Annotator "TA"]
[PlyCount "67"]
[EventDate "2022.06.15"]
[EventType "swiss"]
[EventCountry "GER"]
[SourceTitle "playchess.com"]
[Source "ChessBase"]
[SourceQuality "1"]
[TimeControl "40/5400+30:1800+30"]

{[%evp 12,67,52,57,96,96,102,79,87,85,100,87,135,118,150,123,115,105,118,110,169,154,182,195,215,174,260,269,323,245,382,144,368,209,207,206,344,376,346,117,497,83,56,60,226,210,291,219,166,145,739,680,29979,29979,29996,29997,29997,29998]} 1. d4 {[%emt 0:00:03][%cal Bd2d4,Bd4d5][%mdl 32]} d6 {[%emt 0:00:37]} 2. e4 {[%emt 0:00:43]} g6 {[%emt 0:00:49]} 3. c4 {[%emt 0:01:13]} Bg7 {[%emt 0:00:49]} 4. Nc3 {[%emt 0:00:34]} Nc6 {[%emt 0:01:12]} 5. Be3 {[%emt 0:00:22]} e5 {[%emt 0:00:17]} 6. d5 {[%emt 0:01:15]} Nce7 {[%emt 0:00:07]} 7. g4 {[%emt 0:02:56]} h5 {[%emt 0:06:51] A42: Modern Defence: Averbakh Variation.} 8. g5 {[%emt 0:00:21]} f5 {[%emt 0:04:06]} 9. gxf6 {[%emt 0:00:18] White is more active.} Nxf6 {[%emt 0:02:26] White is better.} 10. f3 {[%emt 0:00:25]} Bd7 {[%emt 0:10:27]} 11. Qd2 {[%emt 0:02:45] [#]} Nh7 $146 {[%emt 0:04:19]} (11... a6 $142) ({Predecessor:} 11... O-O 12. h4 a6 13. Bh6 Qe8 14. Bxg7 Kxg7 15. Bh3 b5 16. b3 Qb8 17. Nge2 Qb6 {½-½ (42) Ewers,C (1697)-Kudsin,A (1784) Germany 2016}) 12. O-O-O {[%emt 0:04:26]} g5 {[%emt 0:09:36]} 13. h4 {[%emt 0:07:10]} g4 {[%emt 0:01:43]} 14. fxg4 {[%emt 0:00:21]} Bxg4 {[%emt 0:01:59]} 15. Be2 {[%emt 0:01:03]} Nf6 {[%emt 0:02:28]} (15... Qd7 $16) 16. Kb1 {[%emt 0:04:52]} Qd7 {[%emt 0:04:38] [#]} 17. Nf3 $1 {[%emt 0:08:06]} O-O-O {[%emt 0:11:17]} 18. Ng5 {[%emt 0:00:45]} Ng6 {[%emt 0:05:22]} (18... a6 $142 19. c5 Kb8) 19. Bxg4 {[%emt 0:03:49]} (19. Bxa7 $6 Nf4 $16) 19... hxg4 {[%emt 0:01:37]} 20. Ne6 {[%emt 0:01:10]} (20. Bxa7 b6 $16) 20... Rdg8 {[%emt 0:00:40]} (20... a6 $142 21. Nxd8 Qxd8) 21. Bg5 $2 {[%emt 0:04:55]} (21. Bxa7 $18 {and White stays clearly on top.} g3 22. Nb5) 21... Nf8 $2 {[%emt 0:05:18]} (21... Nf4 $16 {might work better.}) 22. Nxg7 {[%emt 0:02:40]} (22. Qf2 $142 b6 23. Nxg7 Rxg7 24. Qxf6) 22... Qxg7 $18 {[%emt 0:00:03]} 23. Qf2 $1 {[%emt 0:00:14][%csl LRa7,LRf6]} N6h7 {[%emt 0:03:31]} (23... N8h7 $142) 24. Qxa7 {[%emt 0:01:32] Intending Qa8+ and mate.} Nxg5 {[%emt 0:00:12]} 25. hxg5 $2 {[%emt 0:00:05]} (25. Qa8+ Kd7 $16) (25. c5 $18 {is the precise move to win.} Nf3 26. cxd6 cxd6 27. Nb5) 25... Nd7 $2 {[%emt 0:02:35][%mdl 8192]} (25... Rxh1 $16 {is more resistant.} 26. Qa8+ Kd7 27. Rxh1 g3) 26. Nb5 $2 {[%emt 0:01:19]} (26. Rhe1 $18 {is more deadly.}) 26... Rxh1 $16 {[%emt 0:05:08]} 27. Rxh1 $40 {[%emt 0:00:58][%mdl 128] aiming for Qa8+. White has some attack.} Qg6 $2 {[%emt 0:05:20]} (27... g3 $1 $14) 28. Re1 $18 {[%emt 0:06:50] And now Qa8+ would win.} ({Not} 28. Qa8+ Nb8 29. Rc1 (29. Re1 Qxg5 30. Na7+ Kd7 $11) 29... Qxe4+ 30. Ka1 Qf4 $11) 28... Nc5 {[%emt 0:05:46]} 29. Qa5 {[%emt 0:02:54][%csl Gb5][%cal Ra5c7]} Na6 {[%emt 0:00:38] [#]} 30. c5 $1 {[%emt 0:15:39] Hoping for cxd6.} g3 $2 {[%emt 0:02:59][%mdl 8192]} (30... Rh8 $16) 31. cxd6 {[%emt 0:02:15]} cxd6 {[%emt 0:00:02]} 32. Qb6 {[%emt 0:04:33] White mates.} g2 {[%emt 0:01:49]} 33. Rc1+ {[%emt 0:02:02]} Kd7 {[%emt 0:00:06]} 34. Qxb7+ {[%emt 0:00:08] Weighted Error Value: White=0.67/Black=0.99} 1-0